[Event "Championnat d'Europe Rapide"]
[Date "2024.12.07"]
[White "Safarli, Eltaj"]
[Black "Van Foreest, Jorden"]
[WhiteElo "2610"]
[BlackElo "2677"]
[Round "6.1"]
[Result "1/2-1/2"]
[TimeControl "900+10"]

1. e4 {[%emt 00:00:02] [%clk 00:15:17]} e5 {[%emt 00:00:02] [%clk 00:15:19]} 2.
Nf3 {[%emt 00:00:03] [%clk 00:15:24]} Nc6 {[%emt 00:00:03] [%clk 00:15:25]} 3.
Bb5 {[%emt 00:00:04] [%clk 00:15:30]} Nf6 {[%emt 00:00:03] [%clk 00:15:32]} 4.
O-O {[%emt 00:00:29] [%clk 00:15:11]} Nxe4 {[%emt 00:00:03] [%clk 00:15:38]} 5.
d4 {[%emt 00:00:06] [%clk 00:15:16]} Nd6 {[%emt 00:00:04] [%clk 00:15:44]} 6.
dxe5 {[%emt 00:00:04] [%clk 00:15:23]} Nxb5 {[%emt 00:00:03] [%clk 00:15:51]} 7.
a4 {[%emt 00:00:01] [%clk 00:15:32]} Nbd4 {[%emt 00:00:04] [%clk 00:15:57]} 8.
Nxd4 {[%emt 00:00:02] [%clk 00:15:40]} d5 {[%emt 00:00:04] [%clk 00:16:03]} 9.
exd6 {[%emt 00:00:03] [%clk 00:15:47]} Nxd4 {[%emt 00:00:02] [%clk 00:16:11]}
10. Qxd4 {[%emt 00:00:02] [%clk 00:15:55]} Qxd6 {[%emt 00:00:01] [%clk
00:16:19]} 11. Qe4+ {[%emt 00:00:01] [%clk 00:16:04]} Qe6 {[%emt 00:00:02] [%clk
00:16:28]} 12. Qd4 {[%clk 00:16:13]} Qd6 {[%emt 00:00:01] [%clk 00:16:37]}
1/2-1/2

[Site "Europe Echecs"]

[Event "Championnat d'Europe Rapide"]
[Date "2024.12.07"]
[White "Navara, David"]
[Black "Georgiev, Kiril"]
[WhiteElo "2665"]
[BlackElo "2537"]
[Round "6.2"]
[Result "0-1"]
[TimeControl "900+10"]

1. e4 {[%emt 00:00:01] [%clk 00:15:19]} e5 {[%emt 00:00:29] [%clk 00:14:51]} 2.
Nf3 {[%emt 00:00:02] [%clk 00:15:27]} Nc6 {[%emt 00:00:02] [%clk 00:14:59]} 3.
Bb5 {[%emt 00:00:02] [%clk 00:15:35]} Nf6 {[%emt 00:00:03] [%clk 00:15:07]} 4.
d3 {[%emt 00:00:01] [%clk 00:15:43]} Bc5 {[%emt 00:00:08] [%clk 00:15:07]} 5.
Bg5 {[%emt 00:00:04] [%clk 00:15:51]} a6 {[%emt 00:01:24] [%clk 00:13:53]} 6.
Bxc6 {[%emt 00:02:34] [%clk 00:13:26]} dxc6 {[%emt 00:00:11] [%clk 00:13:52]} 7.
Nbd2 {[%emt 00:01:37] [%clk 00:12:00]} Be6 {[%emt 00:00:29] [%clk 00:13:32]} 8.
Nb3 {[%emt 00:03:02] [%clk 00:09:09]} Bb6 {[%emt 00:02:12] [%clk 00:11:29]} 9.
O-O {[%emt 00:02:20] [%clk 00:07:00]} Qd6 {[%emt 00:00:16] [%clk 00:11:22]} 10.
Bxf6 {[%emt 00:00:18] [%clk 00:06:53]} gxf6 {[%emt 00:00:03] [%clk 00:11:28]}
11. Nh4 {[%emt 00:00:03] [%clk 00:07:01]} h5 {[%emt 00:00:35] [%clk 00:11:03]}
12. Nf5 {[%emt 00:00:20] [%clk 00:06:51]} Qd7 {[%emt 00:00:19] [%clk 00:10:53]}
13. Ng7+ {[%emt 00:00:21] [%clk 00:06:41]} Ke7 {[%emt 00:00:04] [%clk 00:10:58]}
14. Kh1 {[%emt 00:01:04] [%clk 00:05:48]} Bg4 {[%emt 00:01:59] [%clk 00:09:07]}
15. f3 {[%emt 00:00:03] [%clk 00:05:57]} Rag8 {[%emt 00:00:01] [%clk 00:09:15]}
16. fxg4 {[%emt 00:00:03] [%clk 00:06:05]} Rxg7 {[%emt 00:00:02] [%clk
00:09:24]} 17. Qf3 {[%emt 00:03:09] [%clk 00:03:04]} hxg4 {[%emt 00:04:19] [%clk
00:05:15]} 18. Qxf6+ {[%emt 00:00:03] [%clk 00:03:12]} Kf8 {[%emt 00:00:01]
[%clk 00:05:24]} 19. Rf5 {[%emt 00:02:33] [%clk 00:00:49]} Qd6 {[%emt 00:01:43]
[%clk 00:03:50]} 20. Qxe5 {[%emt 00:00:38] [%clk 00:00:22]} Qxe5 {[%emt
00:00:51] [%clk 00:03:10]} 21. Rxe5 {[%emt 00:00:01] [%clk 00:00:30]} Bf2 {[%emt
00:00:08] [%clk 00:03:12]} 22. Rf5 {[%emt 00:00:27] [%clk 00:00:14]} Rxh2+
{[%emt 00:00:15] [%clk 00:03:06]} 0-1

[Site "Europe Echecs"]

[Event "Championnat d'Europe Rapide"]
[Date "2024.12.07"]
[White "Saric, Ante"]
[Black "Deac, Bogdan-Daniel"]
[WhiteElo "2482"]
[BlackElo "2696"]
[Round "6.3"]
[Result "1/2-1/2"]
[TimeControl "900+10"]

1. Nf3 {[%clk 00:15:19]} d5 {[%emt 00:00:13] [%clk 00:15:08]} 2. d4 {[%emt
00:00:02] [%clk 00:15:27]} Nf6 {[%emt 00:00:02] [%clk 00:15:16]} 3. c4 {[%emt
00:00:01] [%clk 00:15:36]} e6 {[%emt 00:00:02] [%clk 00:15:23]} 4. Nc3 {[%emt
00:00:03] [%clk 00:15:43]} dxc4 {[%emt 00:02:49] [%clk 00:12:44]} 5. e3 {[%emt
00:00:02] [%clk 00:15:51]} a6 {[%emt 00:00:03] [%clk 00:12:51]} 6. a4 {[%emt
00:00:04] [%clk 00:15:58]} c5 {[%emt 00:00:14] [%clk 00:12:46]} 7. Bxc4 {[%emt
00:00:02] [%clk 00:16:06]} Nc6 {[%emt 00:00:02] [%clk 00:12:54]} 8. O-O {[%emt
00:00:04] [%clk 00:16:12]} Be7 {[%emt 00:00:02] [%clk 00:13:01]} 9. Qe2 {[%emt
00:00:04] [%clk 00:16:19]} O-O {[%emt 00:01:10] [%clk 00:12:01]} 10. Rd1 {[%emt
00:00:06] [%clk 00:16:23]} Qc7 {[%emt 00:00:07] [%clk 00:12:04]} 11. dxc5 {[%emt
00:00:06] [%clk 00:16:27]} Bxc5 {[%emt 00:00:27] [%clk 00:11:47]} 12. Bd3 {[%emt
00:00:02] [%clk 00:16:35]} Rd8 {[%emt 00:02:04] [%clk 00:09:53]} 13. Ne4 {[%emt
00:02:08] [%clk 00:14:37]} Be7 {[%emt 00:01:12] [%clk 00:08:51]} 14. Bd2 {[%emt
00:00:11] [%clk 00:14:36]} Bd7 {[%emt 00:01:05] [%clk 00:07:56]} 15. Rac1 {[%emt
00:05:28] [%clk 00:09:18]} Nd5 {[%emt 00:01:53] [%clk 00:06:12]} 16. Nc5 {[%emt
00:02:35] [%clk 00:06:54]} Be8 {[%emt 00:01:30] [%clk 00:04:52]} 17. e4 {[%emt
00:00:10] [%clk 00:06:55]} Nf4 {[%emt 00:01:05] [%clk 00:03:56]} 18. Bxf4 {[%emt
00:00:08] [%clk 00:06:57]} Qxf4 {[%emt 00:00:02] [%clk 00:04:04]} 19. Nxb7
{[%emt 00:00:36] [%clk 00:06:30]} Nd4 {[%emt 00:03:29] [%clk 00:00:46]} 20. Nxd4
{[%emt 00:02:28] [%clk 00:04:13]} Rxd4 {[%emt 00:00:01] [%clk 00:00:54]} 21. b3
{[%emt 00:00:23] [%clk 00:04:01]} a5 {[%emt 00:00:09] [%clk 00:00:54]} 22. e5
{[%emt 00:01:01] [%clk 00:03:11]} Rd5 {[%emt 00:00:39] [%clk 00:00:24]} 23. Re1
{[%emt 00:01:14] [%clk 00:02:08]} Bb4 {[%emt 00:00:07] [%clk 00:00:27]} 24. Rc4
{[%emt 00:00:03] [%clk 00:02:15]} Qd2 {[%emt 00:00:19] [%clk 00:00:16]} 25. Rd1
{[%emt 00:00:25] [%clk 00:02:01]} Qxe2 {[%emt 00:00:09] [%clk 00:00:17]} 26.
Bxe2 {[%emt 00:00:01] [%clk 00:02:11]} Rxe5 {[%emt 00:00:01] [%clk 00:00:25]}
27. Bf3 {[%emt 00:00:10] [%clk 00:02:11]} Rb8 {[%emt 00:00:03] [%clk 00:00:33]}
28. g3 {[%emt 00:00:06] [%clk 00:02:15]} g6 {[%emt 00:00:26] [%clk 00:00:16]}
29. Kg2 {[%emt 00:00:25] [%clk 00:02:01]} Kg7 {[%emt 00:00:09] [%clk 00:00:17]}
30. h4 {[%emt 00:00:22] [%clk 00:01:49]} h6 {[%emt 00:00:06] [%clk 00:00:21]}
31. Rd8 {[%emt 00:00:35] [%clk 00:01:24]} Rxd8 {[%emt 00:00:09] [%clk 00:00:21]}
32. Nxd8 {[%clk 00:01:33]} Re1 {[%emt 00:00:19] [%clk 00:00:12]} 33. Bc6 {[%emt
00:00:08] [%clk 00:01:35]} Be7 {[%emt 00:00:09] [%clk 00:00:12]} 34. Nxe6+
{[%emt 00:00:34] [%clk 00:01:12]} Rxe6 {[%emt 00:00:02] [%clk 00:00:20]} 35.
Bxe8 {[%emt 00:00:01] [%clk 00:01:21]} Bb4 {[%emt 00:00:02] [%clk 00:00:28]} 36.
Bb5 {[%emt 00:00:14] [%clk 00:01:17]} Re5 {[%emt 00:00:21] [%clk 00:00:17]} 37.
Rc7 {[%emt 00:00:10] [%clk 00:01:16]} Re7 {[%emt 00:00:05] [%clk 00:00:24]} 38.
Rc2 {[%emt 00:00:05] [%clk 00:01:20]} h5 {[%emt 00:00:07] [%clk 00:00:29]} 39.
Rc4 {[%emt 00:00:13] [%clk 00:01:17]} Re5 {[%emt 00:00:06] [%clk 00:00:32]} 40.
Rf4 {[%emt 00:00:07] [%clk 00:01:20]} Re7 {[%emt 00:00:19] [%clk 00:00:23]} 41.
Bc4 {[%emt 00:00:02] [%clk 00:01:28]} Rd7 {[%emt 00:00:06] [%clk 00:00:27]} 42.
Kh3 {[%emt 00:00:13] [%clk 00:01:24]} Bc5 {[%emt 00:00:10] [%clk 00:00:27]} 43.
Kg2 {[%emt 00:00:05] [%clk 00:01:30]} f5 {[%emt 00:00:08] [%clk 00:00:29]} 44.
Be2 {[%emt 00:00:14] [%clk 00:01:26]} Rd4 {[%emt 00:00:21] [%clk 00:00:28]} 45.
Rxd4 {[%emt 00:00:33] [%clk 00:01:13]} Bxd4 {[%emt 00:00:02] [%clk 00:00:36]}
46. Bc4 {[%emt 00:00:03] [%clk 00:01:19]} Bc5 {[%emt 00:00:01] [%clk 00:00:45]}
47. Bb5 {[%emt 00:00:07] [%clk 00:01:23]} Kf6 {[%emt 00:00:04] [%clk 00:00:49]}
48. Be8 {[%emt 00:00:03] [%clk 00:01:31]} Bb4 {[%emt 00:00:04] [%clk 00:00:55]}
49. f4 {[%emt 00:00:10] [%clk 00:01:32]} Be1 {[%emt 00:00:07] [%clk 00:00:57]}
50. Kf3 {[%emt 00:00:02] [%clk 00:01:41]} Kg7 {[%emt 00:00:04] [%clk 00:01:03]}
51. Bb5 {[%emt 00:00:14] [%clk 00:01:37]} Kf6 {[%emt 00:00:02] [%clk 00:01:11]}
52. Bc4 {[%emt 00:00:02] [%clk 00:01:45]}

[Site "Europe Echecs"]

[Event "Championnat d'Europe Rapide"]
[Date "2024.12.07"]
[White "Jobava, Baadur"]
[Black "Cvitan, Ognjen"]
[WhiteElo "2578"]
[BlackElo "2413"]
[Round "6.4"]
[Result "1-0"]
[TimeControl "900+10"]

1. e4 {[%emt 00:00:02] [%clk 00:15:17]} c5 {[%emt 00:00:03] [%clk 00:15:17]} 2.
c3 {[%emt 00:00:03] [%clk 00:15:24]} Nf6 {[%emt 00:00:50] [%clk 00:14:37]} 3. e5
{[%emt 00:00:04] [%clk 00:15:30]} Nd5 {[%emt 00:00:02] [%clk 00:14:45]} 4. d4
{[%emt 00:00:12] [%clk 00:15:28]} cxd4 {[%emt 00:00:03] [%clk 00:14:52]} 5. Qxd4
{[%emt 00:00:03] [%clk 00:15:35]} e6 {[%emt 00:00:14] [%clk 00:14:48]} 6. Nf3
{[%emt 00:00:02] [%clk 00:15:43]} Nc6 {[%emt 00:00:05] [%clk 00:14:53]} 7. Qg4
{[%emt 00:00:03] [%clk 00:15:50]} d6 {[%emt 00:01:32] [%clk 00:13:31]} 8. Bb5
{[%emt 00:00:03] [%clk 00:15:56]} dxe5 {[%emt 00:00:47] [%clk 00:12:55]} 9. Nxe5
{[%emt 00:00:04] [%clk 00:16:03]} Qc7 {[%emt 00:00:10] [%clk 00:12:54]} 10. Nxc6
{[%emt 00:00:08] [%clk 00:16:06]} bxc6 {[%emt 00:00:01] [%clk 00:13:02]} 11. Be2
{[%emt 00:00:30] [%clk 00:15:46]} g6 {[%emt 00:01:50] [%clk 00:11:22]} 12. O-O
{[%emt 00:01:16] [%clk 00:14:40]} Bg7 {[%emt 00:00:05] [%clk 00:11:26]} 13. Na3
{[%emt 00:01:56] [%clk 00:12:55]} O-O {[%emt 00:00:10] [%clk 00:11:26]} 14. Re1
{[%emt 00:00:13] [%clk 00:12:52]} e5 {[%emt 00:00:53] [%clk 00:10:43]} 15. Qh4
{[%emt 00:01:03]} Be6 {[%clk 00:10:25]} 16. Bf1 {[%emt 00:00:53] [%clk
00:11:44]} Rfd8 {[%emt 00:00:48] [%clk 00:09:46]} 17. Nc4 {[%emt 00:01:21] [%clk
00:10:34]} Rd7 {[%emt 00:00:28] [%clk 00:09:28]} 18. Nd2 {[%emt 00:05:14]} Qd8
{[%clk 00:06:55]} 19. Qxd8+ {[%emt 00:01:07] [%clk 00:07:16]} Raxd8 {[%emt
00:00:10] [%clk 00:06:55]} 20. Nb3 {[%emt 00:00:37] [%clk 00:06:49]} Re7 {[%emt
00:01:18] [%clk 00:05:46]} 21. g3 {[%emt 00:01:09] [%clk 00:05:51]} f6 {[%emt
00:00:07] [%clk 00:05:49]} 22. Bg2 {[%emt 00:00:32] [%clk 00:05:29]} Bf7 {[%emt
00:00:04] [%clk 00:05:55]} 23. Bd2 {[%emt 00:00:42] [%clk 00:04:57]} Rc7 {[%emt
00:00:09] [%clk 00:05:57]} 24. Rad1 {[%emt 00:00:32] [%clk 00:04:34]} Bf8 {[%emt
00:00:23] [%clk 00:05:43]} 25. Na5 {[%emt 00:00:27] [%clk 00:04:17]} Bc5 {[%emt
00:00:39] [%clk 00:05:15]} 26. Bc1 {[%emt 00:03:41] [%clk 00:00:47]} Bb6 {[%emt
00:01:07] [%clk 00:04:17]} 27. Nc4 {[%emt 00:00:03] [%clk 00:00:54]} Rcd7 {[%clk
00:04:26]} 28. Bh3 {[%emt 00:00:08] [%clk 00:00:56]} f5 {[%emt 00:02:05] [%clk
00:02:31]} 29. Nxe5 {[%emt 00:00:04] [%clk 00:01:02]} Rd6 {[%clk 00:02:40]} 30.
Bg5 {[%emt 00:00:21] [%clk 00:00:51]} Re8 {[%emt 00:00:44] [%clk 00:02:07]} 31.
c4 {[%emt 00:00:20] [%clk 00:00:40]} Rde6 {[%emt 00:01:00] [%clk 00:01:17]} 32.
cxd5 {[%emt 00:00:02] [%clk 00:00:48]} Rxe5 {[%clk 00:01:26]} 33. Rxe5 {[%emt
00:00:04] [%clk 00:00:55]} Rxe5 {[%clk 00:01:36]} 34. d6 {[%emt 00:00:33] [%clk
00:00:32]} h6 {[%emt 00:01:04] [%clk 00:00:41]} 35. Bxh6 {[%emt 00:00:02] [%clk
00:00:40]} 1-0

[Site "Europe Echecs"]

[Event "Championnat d'Europe Rapide"]
[Date "2024.12.07"]
[White "Boyer, Mahel"]
[Black "Korobov, Anton"]
[WhiteElo "2526"]
[BlackElo "2629"]
[Round "6.5"]
[Result "1-0"]
[TimeControl "900+10"]

1. d4 {[%emt 00:00:28] [%clk 00:14:50]} Nf6 {[%emt 00:00:03] [%clk 00:15:19]} 2.
c4 {[%clk 00:14:59]} e6 {[%emt 00:00:02] [%clk 00:15:27]} 3. Nc3 {[%emt
00:00:02] [%clk 00:15:08]} d5 {[%emt 00:00:04] [%clk 00:15:32]} 4. Nf3 {[%emt
00:00:10] [%clk 00:15:08]} c6 {[%emt 00:00:02] [%clk 00:15:40]} 5. Bg5 {[%emt
00:00:30] [%clk 00:14:47]} h6 {[%emt 00:00:03] [%clk 00:15:48]} 6. Bxf6 {[%emt
00:00:06] [%clk 00:14:51]} Qxf6 {[%emt 00:00:02] [%clk 00:15:56]} 7. a3 {[%emt
00:00:02] [%clk 00:15:00]} dxc4 {[%emt 00:00:26] [%clk 00:15:39]} 8. Ne5 {[%emt
00:00:21] [%clk 00:14:50]} Nd7 {[%emt 00:00:36] [%clk 00:15:12]} 9. Nxc4 {[%emt
00:00:08] [%clk 00:14:51]} Nb6 {[%emt 00:00:49] [%clk 00:14:34]} 10. e3 {[%emt
00:03:46] [%clk 00:11:15]} Qd8 {[%emt 00:00:10] [%clk 00:14:33]} 11. Ne5 {[%emt
00:00:21] [%clk 00:11:05]} Nd7 {[%emt 00:00:01] [%clk 00:14:41]} 12. f4 {[%emt
00:01:38] [%clk 00:09:37]} Be7 {[%emt 00:00:37] [%clk 00:14:14]} 13. Bc4 {[%emt
00:00:34] [%clk 00:09:13]} O-O {[%emt 00:00:06] [%clk 00:14:18]} 14. O-O {[%emt
00:00:07] [%clk 00:09:17]} c5 {[%emt 00:00:27] [%clk 00:14:01]} 15. Nxd7 {[%emt
00:01:53] [%clk 00:07:34]} Bxd7 {[%emt 00:00:01] [%clk 00:14:09]} 16. d5 {[%emt
00:00:03] [%clk 00:07:42]} exd5 {[%emt 00:00:19] [%clk 00:14:01]} 17. Bxd5
{[%emt 00:00:10] [%clk 00:07:41]} Rb8 {[%emt 00:00:48] [%clk 00:13:23]} 18. e4
{[%emt 00:00:13] [%clk 00:07:38]} b5 {[%emt 00:00:09] [%clk 00:13:24]} 19. e5
{[%emt 00:00:08] [%clk 00:07:40]} b4 {[%emt 00:00:41] [%clk 00:12:53]} 20. axb4
{[%emt 00:00:01] [%clk 00:07:49]} cxb4 {[%emt 00:00:02] [%clk 00:13:02]} 21. Ne4
{[%emt 00:00:05] [%clk 00:07:53]} Qb6+ {[%emt 00:00:33] [%clk 00:12:39]} 22. Kh1
{[%emt 00:00:07] [%clk 00:07:56]} Bb5 {[%emt 00:00:26] [%clk 00:12:23]} 23. Rf2
{[%emt 00:00:13] [%clk 00:07:51]} Rbd8 {[%emt 00:00:17] [%clk 00:12:17]} 24. Rd2
{[%emt 00:00:04] [%clk 00:07:58]} Qe3 {[%emt 00:00:44] [%clk 00:11:43]} 25. Qf3
{[%emt 00:00:08] [%clk 00:08:00]} Qxf3 {[%emt 00:01:15] [%clk 00:10:38]} 26.
gxf3 {[%emt 00:00:01] [%clk 00:08:09]} a6 {[%emt 00:00:01] [%clk 00:10:47]} 27.
f5 {[%emt 00:00:27] [%clk 00:07:51]} Kh8 {[%emt 00:00:27] [%clk 00:10:30]} 28.
Rc1 {[%emt 00:04:51] [%clk 00:03:10]} Rd7 {[%emt 00:01:16] [%clk 00:09:25]} 29.
f6 {[%emt 00:00:44] [%clk 00:02:36]} gxf6 {[%emt 00:00:01] [%clk 00:09:34]} 30.
exf6 {[%emt 00:00:02] [%clk 00:02:44]} Bd8 {[%emt 00:00:08] [%clk 00:09:34]} 31.
Rc8 {[%emt 00:00:06] [%clk 00:02:50]} Rc7 {[%emt 00:00:07] [%clk 00:09:37]} 32.
Rc2 {[%emt 00:01:17] [%clk 00:01:43]} Rd7 {[%emt 00:01:47] [%clk 00:08:00]} 33.
Rd2 {[%emt 00:00:18] [%clk 00:01:35]} Rc7 {[%emt 00:01:51] [%clk 00:06:18]} 34.
Rc2 {[%emt 00:00:03] [%clk 00:01:42]} Rd7 {[%emt 00:00:41] [%clk 00:05:47]} 35.
Rd2 {[%emt 00:00:04] [%clk 00:01:49]} Kh7 {[%emt 00:01:09] [%clk 00:04:48]} 36.
Nc5 {[%emt 00:00:35] [%clk 00:01:24]} Rc7 {[%emt 00:01:37] [%clk 00:03:20]} 37.
Rxd8 {[%emt 00:00:14] [%clk 00:01:21]} 1-0

[Site "Europe Echecs"]

[Event "Championnat d'Europe Rapide"]
[Date "2024.12.07"]
[White "Pultinevicius, Paulius"]
[Black "Horvath, Dominik"]
[WhiteElo "2579"]
[BlackElo "2542"]
[Round "6.6"]
[Result "1/2-1/2"]
[TimeControl "900+10"]

1. d4 {[%emt 00:00:01] [%clk 00:15:19]} Nf6 {[%emt 00:00:02] [%clk 00:15:18]} 2.
c4 {[%emt 00:00:03] [%clk 00:15:28]} g6 {[%clk 00:15:27]} 3. Nc3 {[%emt
00:00:06] [%clk 00:15:32]} d5 {[%clk 00:15:35]} 4. Nf3 {[%emt 00:00:12] [%clk
00:15:30]} Bg7 {[%emt 00:00:01] [%clk 00:15:44]} 5. Qb3 {[%clk 00:15:38]} dxc4
{[%emt 00:00:13] [%clk 00:15:43]} 6. Qxc4 {[%clk 00:15:47]} O-O {[%emt 00:00:59]
[%clk 00:14:54]} 7. Bf4 {[%emt 00:00:02] [%clk 00:15:55]} Bf5 {[%emt 00:00:07]
[%clk 00:14:57]} 8. e3 {[%emt 00:00:20] [%clk 00:15:45]} c6 {[%emt 00:00:02]
[%clk 00:15:06]} 9. Qb3 {[%emt 00:00:21] [%clk 00:15:34]} Qb6 {[%emt 00:00:07]
[%clk 00:15:09]} 10. Qa3 {[%emt 00:00:20] [%clk 00:15:23]} Nbd7 {[%emt 00:00:38]
[%clk 00:14:41]} 11. h3 {[%emt 00:00:04] [%clk 00:15:29]} c5 {[%emt 00:01:17]
[%clk 00:13:35]} 12. Be2 {[%emt 00:02:13] [%clk 00:13:26]} cxd4 {[%emt 00:00:14]
[%clk 00:13:30]} 13. Nxd4 {[%emt 00:00:03] [%clk 00:13:33]} e5 {[%emt 00:00:01]
[%clk 00:13:39]} 14. Nxf5 {[%emt 00:00:02] [%clk 00:13:42]} exf4 {[%clk
00:13:47]} 15. Ne7+ {[%emt 00:01:10] [%clk 00:12:43]} Kh8 {[%emt 00:00:01] [%clk
00:13:56]} 16. Ned5 {[%clk 00:12:52]} Nxd5 {[%emt 00:01:12] [%clk 00:12:54]} 17.
Nxd5 {[%emt 00:00:11] [%clk 00:12:51]} Qc5 {[%emt 00:00:38] [%clk 00:12:26]} 18.
Qxc5 {[%emt 00:06:03] [%clk 00:06:58]} Nxc5 {[%emt 00:00:02] [%clk 00:12:34]}
19. Nxf4 {[%clk 00:07:07]} Bxb2 {[%emt 00:00:01] [%clk 00:12:42]} 1/2-1/2

[Site "Europe Echecs"]